[Event "Caplin Hastings Masters 2023-24"]
[Site "Hastings"]
[Date "2024.01.01"]
[Round "5.18"]
[White "Beaumont, Chris R"]
[Black "Ahn, Sungmin"]
[Result "1-0"]
[ECO "A37"]
[WhiteElo "2236"]
[BlackElo "1836"]
[Annotator "RC"]
[PlyCount "147"]
[EventDate "2023.12.18"]
[EventType "swiss"]
[EventCountry "ENG"]
[SourceTitle "playchess.com"]
[Source "ChessBase"]
[SourceQuality "1"]
[TimeControl "40/6000+30:3000+30"]

1. Nf3 {[%emt 0:00:04]} c5 {[%emt 0:00:02]} 2. c4 {[%emt 0:00:11]} Nc6 {[%emt 0:00:03]} 3. g3 {[%emt 0:00:25]} g6 {[%emt 0:00:19]} 4. Bg2 {[%emt 0:00:08]} Bg7 {[%emt 0:00:05]} 5. Nc3 {[%emt 0:00:13]} e5 {[%emt 0:07:48]} 6. O-O {[%emt 0:02:51]} Nge7 {[%emt 0:00:04]} 7. a3 {[%emt 0:00:28]} d6 {[%emt 0:00:54]} 8. Rb1 {[%emt 0:00:17]} a5 {[%emt 0:00:49]} 9. d3 {[%emt 0:00:07]} O-O {[%emt 0:02:30]} 10. Bg5 {[%emt 0:00:12]} f6 {[%emt 0:00:22]} 11. Be3 {[%emt 0:00:08]} Be6 {[%emt 0:02:29]} 12. Ne1 {[%emt 0:00:15]} b6 {[%emt 0:03:07]} 13. Nc2 {[%emt 0:00:35]} d5 {[%emt 0:04:22]} 14. cxd5 {[%emt 0:00:52]} Nxd5 {[%emt 0:00:09]} 15. Nxd5 {[%emt 0:00:12]} Bxd5 {[%emt 0:00:04]} 16. Bxd5+ {[%emt 0:00:16]} Qxd5 {[%emt 0:00:05]} 17. b4 {[%emt 0:00:13]} axb4 {[%emt 0:11:07]} 18. axb4 {[%emt 0:00:44]} Rfb8 {[%emt 0:02:54]} 19. bxc5 {[%emt 0:28:53]} bxc5 {[%emt 0:00:25]} 20. Rxb8+ {[%emt 0:00:07]} Nxb8 {[%emt 0:18:17]} 21. Bd2 {[%emt 0:06:39]} e4 {[%emt 0:17:16]} 22. Ne3 {[%emt 0:04:16]} Qe6 {[%emt 0:00:15]} 23. dxe4 {[%emt 0:01:53]} Qxe4 {[%emt 0:01:43]} 24. Qb3+ {[%emt 0:00:21]} Kh8 {[%emt 0:00:19]} 25. Bc3 {[%emt 0:08:53]} Nc6 {[%emt 0:06:38]} 26. Qd5 {[%emt 0:27:20]} Qxd5 {[%emt 0:00:56]} 27. Nxd5 {[%emt 0:00:03]} Nd4 {[%emt 0:08:04]} 28. Bxd4 {[%emt 0:01:06]} cxd4 {[%emt 0:00:51]} 29. Rb1 {[%emt 0:01:31]} Rd8 {[%emt 0:01:58]} 30. Nf4 {[%emt 0:00:18]} Re8 {[%emt 0:05:01]} 31. Kf1 {[%emt 0:02:10]} f5 {[%emt 0:02:41]} 32. Rb7 {[%emt 0:01:09]} Be5 {[%emt 0:01:53]} 33. Nd3 {[%emt 0:01:40]} Rb8 {[%emt 0:03:41]} 34. Rf7 {[%emt 0:03:18]} Bd6 {[%emt 0:01:09]} 35. h4 {[%emt 0:01:32]} Rd8 {[%emt 0:01:40]} 36. Kg2 {[%emt 0:03:51]} Kg8 {[%emt 0:00:03]} 37. Ra7 {[%emt 0:00:37]} Bf8 {[%emt 0:01:30]} 38. Kf3 {[%emt 0:02:17]} Rd5 {[%emt 0:04:21]} 39. Nf4 {[%emt 0:07:51]} Rd6 {[%emt 0:00:55]} 40. Kg2 {[%emt 0:00:15]} Bh6 {[%emt 0:00:49]} 41. Nd3 {[%emt 0:50:21]} Bg7 {[%emt 0:52:10]} 42. Kf1 {[%emt 0:00:41]} Kf8 {[%emt 0:00:00]} 43. Ke1 {[%emt 0:00:00]} Re6 {[%emt 0:00:00]} 44. Rd7 {[%emt 0:00:00]} Re7 {[%emt 0:00:00]} 45. Rd5 {[%emt 0:00:00]} Ra7 {[%emt 0:00:00]} 46. f4 {[%emt 0:00:00]} Ke7 {[%emt 0:00:00]} 47. Kf2 {[%emt 0:00:00]} Bf6 {[%emt 0:00:00]} 48. Ne1 {[%emt 0:00:00]} Ke6 {[%emt 0:00:00]} 49. Rb5 {[%emt 0:00:00]} Bg7 {[%emt 0:00:00]} 50. Rb6+ {[%emt 0:00:00]} Kd5 {[%emt 0:00:00]} 51. Kf3 {[%emt 0:00:00]} Re7 {[%emt 0:00:00]} 52. Nd3 {[%emt 0:00:00]} Re3+ {[%emt 0:00:00]} 53. Kf2 {[%emt 0:00:00]} Re7 {[%emt 0:00:00]} 54. Rb5+ {[%emt 0:00:00]} Kc6 {[%emt 0:00:00]} 55. Ra5 {[%emt 0:00:00]} Kd6 {[%emt 0:00:00]} 56. h5 {[%emt 0:00:00]} Re6 {[%emt 0:00:00]} 57. Ra7 {[%emt 0:00:00]} Re7 {[%emt 0:00:00]} 58. Ra6+ {[%emt 0:00:00]} Kd5 {[%emt 0:00:00]} 59. hxg6 {[%emt 0:00:00]} h6 {[%emt 0:00:00]} 60. Ra5+ {[%emt 0:00:00]} Kd6 {[%emt 0:00:00]} 61. Rxf5 {[%emt 0:00:00]} Re6 {[%emt 0:00:00]} 62. Ra5 {[%emt 0:00:00]} Ke7 {[%emt 0:00:00]} 63. f5 {[%emt 0:00:00]} Rf6 {[%emt 0:00:00]} 64. Ra7+ {[%emt 0:00:00]} Kf8 {[%emt 0:00:00]} 65. g4 {[%emt 0:00:00]} h5 {[%emt 0:00:00]} 66. Kg3 {[%emt 0:00:00]} hxg4 {[%emt 0:00:54]} 67. Kxg4 {[%emt 0:00:00]} Bh6 {[%emt 0:00:08]} 68. Nf4 {[%emt 0:00:00]} Bxf4 {[%emt 0:01:57]} 69. Kxf4 {[%emt 0:00:00]} Rc6 {[%emt 0:01:17]} 70. Rd7 {[%emt 0:00:00]} Rc2 {[%emt 0:02:58]} 71. f6 {[%emt 0:00:00]} Rxe2 {[%emt 0:00:56]} 72. Rd8+ {[%emt 0:00:00]} Re8 {[%emt 0:00:32]} 73. g7+ {[%emt 0:00:00]} Kf7 {[%emt 0:00:07]} 74. Rxe8 {[%emt 0:00:00]} 1-0

[Event "Caplin Hastings Masters 2023-24"]
[Site "Hastings"]
[Date "2024.01.01"]
[Round "5.19"]
[White "Pert, Max"]
[Black "Rudd, Jack"]
[Result "1-0"]
[ECO "A45"]
[WhiteElo "1950"]
[BlackElo "2314"]
[Annotator "RC"]
[PlyCount "51"]
[EventDate "2023.12.18"]
[EventType "swiss"]
[EventCountry "ENG"]
[SourceTitle "playchess.com"]
[Source "ChessBase"]
[SourceQuality "1"]
[TimeControl "40/6000+30:3000+30"]

1. d4 {[%emt 0:00:02]} Nf6 {[%emt 0:00:06]} 2. Bg5 {[%emt 0:00:19]} Ne4 {[%emt 0:00:13]} 3. Bf4 {[%emt 0:00:28]} c5 {[%emt 0:00:09]} 4. f3 {[%emt 0:02:08]} Qa5+ {[%emt 0:00:08]} 5. c3 {[%emt 0:01:29]} Nf6 {[%emt 0:00:06]} 6. d5 {[%emt 0:01:40]} Qb6 {[%emt 0:00:06]} 7. e4 {[%emt 0:03:30]} Qxb2 {[%emt 0:01:05]} 8. Nd2 {[%emt 0:00:47]} Qxc3 {[%emt 0:00:08]} 9. Bc7 {[%emt 0:03:20]} b6 {[%emt 0:02:42]} 10. Ne2 {[%emt 0:15:10]} Qd3 {[%emt 0:00:52]} 11. Rb1 {[%emt 0:14:49]} Na6 {[%emt 0:01:15]} 12. Rb3 {[%emt 0:24:28]} Qxb3 {[%emt 0:00:09]} 13. Qxb3 {[%emt 0:01:24]} Nxc7 {[%emt 0:00:08]} 14. Nc3 {[%emt 0:03:38]} d6 {[%emt 0:00:50]} 15. f4 {[%emt 0:02:30]} g6 {[%emt 0:03:19]} 16. e5 {[%emt 0:05:35]} Nd7 {[%emt 0:01:33]} 17. Bb5 {[%emt 0:05:55]} Nxb5 {[%emt 0:01:15]} 18. Nxb5 {[%emt 0:00:07]} Kd8 {[%emt 0:00:10]} 19. exd6 {[%emt 0:01:40]} exd6 {[%emt 0:00:07]} 20. Ne4 {[%emt 0:00:14]} Bg7 {[%emt 0:02:52]} 21. Nbxd6 {[%emt 0:01:12]} Kc7 {[%emt 0:01:47]} 22. Qb5 {[%emt 0:02:26]} Nf6 {[%emt 0:03:46]} 23. Qc6+ {[%emt 0:01:41]} Kb8 {[%emt 0:00:09]} 24. Nb5 {[%emt 0:01:08]} Ne8 {[%emt 0:00:07]} 25. Ned6 {[%emt 0:00:47]} Nxd6 {[%emt 0:00:25]} 26. Qc7# {[%emt 0:00:43]} 1-0

[Event "Caplin Hastings Masters 2023-24"]
[Site "Hastings"]
[Date "2024.01.01"]
[Round "5.20"]
[White "Sarkar, Justin"]
[Black "Batchelor, Paul A"]
[Result "1-0"]
[ECO "A61"]
[WhiteElo "2272"]
[BlackElo "1937"]
[Annotator "RC"]
[PlyCount "129"]
[EventDate "2023.12.18"]
[EventType "swiss"]
[EventCountry "ENG"]
[SourceTitle "playchess.com"]
[Source "ChessBase"]
[SourceQuality "1"]
[TimeControl "40/6000+30:3000+30"]

1. d4 {[%emt 0:00:04]} Nf6 {[%emt 0:00:58]} 2. c4 {[%emt 0:00:16]} e6 {[%emt 0:00:10]} 3. Nf3 {[%emt 0:00:26]} c5 {[%emt 0:02:53]} 4. d5 {[%emt 0:01:15]} d6 {[%emt 0:00:27]} 5. Nc3 {[%emt 0:01:04]} exd5 {[%emt 0:00:29]} 6. cxd5 {[%emt 0:00:07]} g6 {[%emt 0:00:13]} 7. Nd2 {[%emt 0:03:25]} a6 {[%emt 0:04:56]} 8. a4 {[%emt 0:00:22]} Bg7 {[%emt 0:05:06]} 9. Nc4 {[%emt 0:12:27]} O-O {[%emt 0:00:33]} 10. Bf4 {[%emt 0:00:16]} Ne8 {[%emt 0:00:11]} 11. Ne4 {[%emt 0:03:31]} f5 {[%emt 0:11:18]} 12. Nexd6 {[%emt 0:01:03]} g5 {[%emt 0:05:57]} 13. Nxc8 {[%emt 0:10:53]} gxf4 {[%emt 0:00:36]} 14. N8b6 {[%emt 0:00:14]} Nd6 {[%emt 0:03:07]} 15. a5 {[%emt 0:10:45]} Nxc4 {[%emt 0:00:25]} 16. Nxc4 {[%emt 0:00:10]} Nd7 {[%emt 0:00:31]} 17. Qd2 {[%emt 0:00:13]} b5 {[%emt 0:00:40]} 18. axb6 {[%emt 0:00:16]} Nxb6 {[%emt 0:00:11]} 19. Qxf4 {[%emt 0:00:31]} Nxd5 {[%emt 0:01:54]} 20. Qd2 {[%emt 0:00:57]} Nb4 {[%emt 0:00:20]} 21. Qxd8 {[%emt 0:15:21]} Raxd8 {[%emt 0:00:12]} 22. Rc1 {[%emt 0:00:08]} Rfe8 {[%emt 0:01:07]} 23. e3 {[%emt 0:00:09]} f4 {[%emt 0:01:06]} 24. Be2 {[%emt 0:00:18]} fxe3 {[%emt 0:01:51]} 25. fxe3 {[%emt 0:00:16]} Bh6 {[%emt 0:02:01]} 26. Kf2 {[%emt 0:07:47]} Rf8+ {[%emt 0:05:07]} 27. Kg3 {[%emt 0:00:58]} Nd5 {[%emt 0:01:07]} 28. Rcd1 {[%emt 0:13:20]} Nxe3 {[%emt 0:00:34]} 29. Rxd8 {[%emt 0:00:39]} Rxd8 {[%emt 0:00:09]} 30. Nxe3 {[%emt 0:00:05]} Bxe3 {[%emt 0:00:09]} 31. Bxa6 {[%emt 0:00:04]} Bd4 {[%emt 0:01:52]} 32. b3 {[%emt 0:00:28]} Kg7 {[%emt 0:03:03]} 33. Re1 {[%emt 0:00:46]} Rd7 {[%emt 0:01:03]} 34. Bc4 {[%emt 0:00:22]} Bf6 {[%emt 0:01:10]} 35. Re2 {[%emt 0:01:56]} Re7 {[%emt 0:00:09]} 36. Ra2 {[%emt 0:00:18]} Bd4 {[%emt 0:00:48]} 37. Kh3 {[%emt 0:00:20]} Re3+ {[%emt 0:01:14]} 38. g3 {[%emt 0:00:09]} Re7 {[%emt 0:00:05]} 39. Kg4 {[%emt 0:00:08]} Re4+ {[%emt 0:07:18]} 40. Kf5 {[%emt 0:00:17]} Re5+ {[%emt 0:00:07]} 41. Kf4 {[%emt 0:50:07]} Re7 {[%emt 0:50:11]} 42. g4 {[%emt 0:03:27]} h6 {[%emt 0:10:07]} 43. h4 {[%emt 0:01:15]} Bf6 {[%emt 0:04:17]} 44. g5 {[%emt 0:00:59]} hxg5+ {[%emt 0:00:29]} 45. hxg5 {[%emt 0:00:02]} Bd4 {[%emt 0:01:14]} 46. Ra8 {[%emt 0:00:17]} Kh7 {[%emt 0:08:39]} 47. Ra6 {[%emt 0:01:52]} Kg7 {[%emt 0:02:06]} 48. g6 {[%emt 0:02:17]} Bc3 {[%emt 0:01:41]} 49. Bf7 {[%emt 0:00:14]} Bd4 {[%emt 0:02:37]} 50. Ra8 {[%emt 0:00:15]} Bc3 {[%emt 0:00:59]} 51. Rg8+ {[%emt 0:00:11]} Kh6 {[%emt 0:00:17]} 52. Rd8 {[%emt 0:00:12]} Kg7 {[%emt 0:02:25]} 53. Rd5 {[%emt 0:00:08]} Rc7 {[%emt 0:01:06]} 54. Rh5 {[%emt 0:02:47]} Bb2 {[%emt 0:10:25]} 55. Ke4 {[%emt 0:00:38]} Bd4 {[%emt 0:00:00]} 56. b4 {[%emt 0:00:00]} Kf8 {[%emt 0:00:00]} 57. Kd5 {[%emt 0:00:00]} Ke7 {[%emt 0:00:00]} 58. b5 {[%emt 0:00:00]} Rd7+ {[%emt 0:00:00]} 59. Kc4 {[%emt 0:00:00]} Rc7 {[%emt 0:00:00]} 60. Rh4 {[%emt 0:00:00]} Rb7 {[%emt 0:00:00]} 61. Bd5 {[%emt 0:00:00]} Rb6 {[%emt 0:00:00]} 62. Rh7+ {[%emt 0:00:00]} Kf8 {[%emt 0:00:00]} 63. Rf7+ {[%emt 0:00:00]} Ke8 {[%emt 0:00:00]} 64. Bc6+ {[%emt 0:00:00]} Kd8 {[%emt 0:00:00]} 65. g7 {[%emt 0:00:00]} 1-0

[Event "Caplin Hastings Masters 2023-24"]
[Site "Hastings"]
[Date "2024.01.01"]
[Round "5.21"]
[White "Byron, Alan M"]
[Black "Suez-Panama, Gilles"]
[Result "0-1"]
[ECO "E62"]
[WhiteElo "2134"]
[BlackElo "1868"]
[Annotator "RC"]
[PlyCount "92"]
[EventDate "2023.12.18"]
[EventType "swiss"]
[EventCountry "ENG"]
[SourceTitle "playchess.com"]
[Source "ChessBase"]
[SourceQuality "1"]
[TimeControl "40/6000+30:3000+30"]

1. Nf3 {[%emt 0:00:05]} Nf6 {[%emt 0:00:58]} 2. g3 {[%emt 0:00:28]} d6 {[%emt 0:00:44]} 3. d4 {[%emt 0:00:25]} g6 {[%emt 0:00:19]} 4. Bg2 {[%emt 0:00:10]} Bg7 {[%emt 0:00:07]} 5. O-O {[%emt 0:00:12]} O-O {[%emt 0:00:31]} 6. c4 {[%emt 0:00:56]} c6 {[%emt 0:00:32]} 7. Nc3 {[%emt 0:00:11]} Qa5 {[%emt 0:03:35]} 8. d5 {[%emt 0:12:18]} Bd7 {[%emt 0:10:57]} 9. Nd2 {[%emt 0:19:59]} Rc8 {[%emt 0:05:35]} 10. e4 {[%emt 0:07:10]} Ng4 {[%emt 0:05:25]} 11. Qb3 {[%emt 0:20:50]} Na6 {[%emt 0:10:10]} 12. Nf3 {[%emt 0:13:54]} Nc5 {[%emt 0:02:14]} 13. Qc2 {[%emt 0:00:09]} cxd5 {[%emt 0:19:27]} 14. Nxd5 {[%emt 0:03:58]} Qd8 {[%emt 0:00:30]} 15. Bg5 {[%emt 0:02:01]} f6 {[%emt 0:01:00]} 16. Bd2 {[%emt 0:00:34]} e6 {[%emt 0:03:21]} 17. Nc3 {[%emt 0:01:14]} Na6 {[%emt 0:02:11]} 18. h3 {[%emt 0:03:15]} Ne5 {[%emt 0:05:54]} 19. Nxe5 {[%emt 0:03:00]} dxe5 {[%emt 0:01:20]} 20. Qd3 {[%emt 0:02:31]} Nb4 {[%emt 0:03:50]} 21. Qe2 {[%emt 0:00:10]} Nc2 {[%emt 0:01:53]} 22. Rac1 {[%emt 0:00:09]} Nd4 {[%emt 0:00:22]} 23. Qd3 {[%emt 0:00:08]} Bc6 {[%emt 0:06:52]} 24. Rfd1 {[%emt 0:01:40]} Rc7 {[%emt 0:07:02]} 25. Be3 {[%emt 0:06:06]} Rd7 {[%emt 0:00:50]} 26. Bxd4 {[%emt 0:00:26]} exd4 {[%emt 0:00:22]} 27. Ne2 {[%emt 0:00:12]} e5 {[%emt 0:01:08]} 28. Rc2 {[%emt 0:01:57]} a5 {[%emt 0:03:07]} 29. Nc1 {[%emt 0:00:27]} b6 {[%emt 0:00:41]} 30. Qe2 {[%emt 0:00:55]} Qc7 {[%emt 0:00:58]} 31. Nd3 {[%emt 0:00:18]} Bb7 {[%emt 0:00:58]} 32. h4 {[%emt 0:01:56]} f5 {[%emt 0:04:00]} 33. h5 {[%emt 0:01:47]} Qc6 {[%emt 0:05:32]} 34. Re1 {[%emt 0:01:07]} Rf8 {[%emt 0:01:11]} 35. hxg6 {[%emt 0:00:33]} hxg6 {[%emt 0:01:41]} 36. f3 {[%emt 0:01:02]} fxe4 {[%emt 0:00:47]} 37. fxe4 {[%emt 0:01:20]} Rdf7 {[%emt 0:00:45]} 38. Qg4 {[%emt 0:02:34]} Bc8 {[%emt 0:00:43]} 39. Qg5 {[%emt 0:00:15]} Qf6 {[%emt 0:01:35]} 40. Qxf6 {[%emt 0:00:59]} Bxf6 {[%emt 0:00:11]} 41. Rf1 {[%emt 0:08:17]} Bg5 {[%emt 0:04:00]} 42. Rxf7 {[%emt 0:01:55]} Rxf7 {[%emt 0:01:03]} 43. Bf1 {[%emt 0:05:53]} Be3+ {[%emt 0:02:21]} 44. Kg2 {[%emt 0:00:41]} Bb7 {[%emt 0:01:23]} 45. Be2 {[%emt 0:05:36]} Bxe4+ {[%emt 0:00:23]} 46. Kh3 {[%emt 0:00:18]} Rh7+ {[%emt 0:01:23]} 0-1

[Event "Caplin Hastings Masters 2023-24"]
[Site "Hastings"]
[Date "2024.01.01"]
[Round "5.22"]
[White "Banerjee, Supratit"]
[Black "Hobson, Kenneth"]
[Result "1/2-1/2"]
[ECO "C47"]
[WhiteElo "1974"]
[BlackElo "2130"]
[Annotator "RC"]
[PlyCount "193"]
[EventDate "2023.12.18"]
[EventType "swiss"]
[EventCountry "ENG"]
[SourceTitle "playchess.com"]
[Source "ChessBase"]
[SourceQuality "1"]
[TimeControl "40/6000+30:3000+30"]

1. e4 {[%emt 0:00:28]} e5 {[%emt 0:00:39]} 2. Nf3 {[%emt 0:01:52]} Nc6 {[%emt 0:00:42]} 3. d4 {[%emt 0:01:06]} exd4 {[%emt 0:00:32]} 4. Nxd4 {[%emt 0:00:26]} Nf6 {[%emt 0:01:03]} 5. Nc3 {[%emt 0:01:53]} Bb4 {[%emt 0:00:46]} 6. Nxc6 {[%emt 0:02:45]} bxc6 {[%emt 0:00:28]} 7. Bd3 {[%emt 0:01:06]} O-O {[%emt 0:01:57]} 8. O-O {[%emt 0:00:10]} d5 {[%emt 0:00:53]} 9. exd5 {[%emt 0:01:44]} cxd5 {[%emt 0:00:13]} 10. Bg5 {[%emt 0:02:33]} c6 {[%emt 0:01:03]} 11. Qf3 {[%emt 0:01:47]} Bd6 {[%emt 0:01:28]} 12. Bxf6 {[%emt 0:02:14]} Qxf6 {[%emt 0:00:14]} 13. Qxf6 {[%emt 0:00:06]} gxf6 {[%emt 0:00:04]} 14. Rad1 {[%emt 0:00:12]} Rb8 {[%emt 0:03:39]} 15. b3 {[%emt 0:06:00]} Re8 {[%emt 0:05:31]} 16. Ne2 {[%emt 0:13:26]} Bg4 {[%emt 0:06:22]} 17. f3 {[%emt 0:01:11]} Bd7 {[%emt 0:01:16]} 18. c4 {[%emt 0:08:20]} Bc5+ {[%emt 0:04:47]} 19. Kh1 {[%emt 0:00:21]} Re5 {[%emt 0:06:44]} 20. Nc3 {[%emt 0:03:32]} Bb4 {[%emt 0:03:17]} 21. Ne2 {[%emt 0:01:49]} Rbe8 {[%emt 0:04:12]} 22. Ng3 {[%emt 0:00:44]} d4 {[%emt 0:17:35]} 23. Ne4 {[%emt 0:01:01]} Kg7 {[%emt 0:01:48]} 24. Ng3 {[%emt 0:05:25]} Kg8 {[%emt 0:14:57]} 25. Ne4 {[%emt 0:00:44]} R8e6 {[%emt 0:04:13]} 26. c5 {[%emt 0:05:24]} f5 {[%emt 0:02:20]} 27. Ng5 {[%emt 0:00:50]} Re7 {[%emt 0:02:12]} 28. f4 {[%emt 0:01:32]} Re3 {[%emt 0:03:27]} 29. Bc4 {[%emt 0:00:27]} Bxc5 {[%emt 0:00:57]} 30. Nf3 {[%emt 0:01:03]} Be6 {[%emt 0:05:19]} 31. Bxe6 {[%emt 0:00:41]} R7xe6 {[%emt 0:01:51]} 32. Nxd4 {[%emt 0:00:26]} Bxd4 {[%emt 0:00:05]} 33. Rxd4 {[%emt 0:00:08]} R6e4 {[%emt 0:00:54]} 34. Rd8+ {[%emt 0:03:51]} Kg7 {[%emt 0:00:06]} 35. h3 {[%emt 0:00:08]} Re2 {[%emt 0:02:14]} 36. Rd6 {[%emt 0:04:08]} Rxa2 {[%emt 0:02:22]} 37. Rxc6 {[%emt 0:03:19]} Ree2 {[%emt 0:03:15]} 38. Rg1 {[%emt 0:03:12]} Re3 {[%emt 0:03:32]} 39. b4 {[%emt 0:04:43]} Rb3 {[%emt 0:02:00]} 40. Rc4 {[%emt 0:04:51]} h5 {[%emt 0:01:33]} 41. Rc5 {[%emt 0:52:13]} Kg6 {[%emt 0:51:34]} 42. Rc6+ {[%emt 0:00:54]} f6 {[%emt 0:02:22]} 43. Rd1 {[%emt 0:01:57]} Rg3 {[%emt 0:00:00]} 44. Rdd6 {[%emt 0:00:00]} Raxg2 {[%emt 0:00:00]} 45. Rxf6+ {[%emt 0:00:00]} Kg7 {[%emt 0:00:00]} 46. h4 {[%emt 0:00:00]} Rg1+ {[%emt 0:00:00]} 47. Kh2 {[%emt 0:00:00]} R3g2+ {[%emt 0:00:00]} 48. Kh3 {[%emt 0:00:00]} Rg4 {[%emt 0:00:00]} 49. Kh2 {[%emt 0:00:00]} R1g2+ {[%emt 0:00:00]} 50. Kh1 {[%emt 0:00:00]} Rc2 {[%emt 0:00:00]} 51. Rg6+ {[%emt 0:00:00]} Rxg6 {[%emt 0:00:00]} 52. Rxc2 {[%emt 0:00:00]} Rg4 {[%emt 0:00:00]} 53. Rc7+ {[%emt 0:00:00]} Kf6 {[%emt 0:00:00]} 54. Rc6+ {[%emt 0:00:00]} Ke7 {[%emt 0:00:00]} 55. Rc7+ {[%emt 0:00:00]} Kd6 {[%emt 0:00:00]} 56. Rxa7 {[%emt 0:00:00]} Rxh4+ {[%emt 0:00:00]} 57. Kg2 {[%emt 0:00:00]} Rxf4 {[%emt 0:00:00]} 58. b5 {[%emt 0:00:00]} Ke5 {[%emt 0:00:00]} 59. b6 {[%emt 0:00:00]} Kf6 {[%emt 0:00:00]} 60. Ra8 {[%emt 0:00:00]} Rb4 {[%emt 0:00:00]} 61. Rb8 {[%emt 0:00:00]} Kg5 {[%emt 0:00:00]} 62. b7 {[%emt 0:00:00]} Kf4 {[%emt 0:00:00]} 63. Kh3 {[%emt 0:00:00]} Rb2 {[%emt 0:00:00]} 64. Rh8 {[%emt 0:00:00]} Rxb7 {[%emt 0:00:00]} 65. Rxh5 {[%emt 0:00:00]} Rg7 {[%emt 0:00:00]} 66. Kh2 {[%emt 0:00:00]} Rb7 {[%emt 0:00:00]} 67. Rh3 {[%emt 0:00:00]} Rb2+ {[%emt 0:00:00]} 68. Kg1 {[%emt 0:00:00]} Re2 {[%emt 0:00:00]} 69. Kf1 {[%emt 0:00:00]} Re3 {[%emt 0:00:00]} 70. Rh2 {[%emt 0:00:00]} Ke4 {[%emt 0:00:00]} 71. Ra2 {[%emt 0:00:00]} Rb3 {[%emt 0:03:06]} 72. Kf2 {[%emt 0:00:00]} Rb4 {[%emt 0:00:37]} 73. Ra3 {[%emt 0:00:00]} Rb2+ {[%emt 0:01:05]} 74. Kf1 {[%emt 0:00:00]} Kf4 {[%emt 0:00:58]} 75. Ra4+ {[%emt 0:00:00]} Kf3 {[%emt 0:00:12]} 76. Ra3+ {[%emt 0:00:00]} Kg4 {[%emt 0:00:07]} 77. Ra4+ {[%emt 0:00:00]} f4 {[%emt 0:00:14]} 78. Ra3 {[%emt 0:00:00]} Rh2 {[%emt 0:01:37]} 79. Kg1 {[%emt 0:00:00]} Rh5 {[%emt 0:00:36]} 80. Kf1 {[%emt 0:00:00]} Rf5 {[%emt 0:00:48]} 81. Kf2 {[%emt 0:00:00]} Rb5 {[%emt 0:00:12]} 82. Kg2 {[%emt 0:00:00]} Rb1 {[%emt 0:00:26]} 83. Kf2 {[%emt 0:00:00]} Rc1 {[%emt 0:00:50]} 84. Kg2 {[%emt 0:00:00]} Rc2+ {[%emt 0:00:15]} 85. Kf1 {[%emt 0:00:00]} Rb2 {[%emt 0:00:03]} 86. Kg1 {[%emt 0:00:00]} Kf5 {[%emt 0:01:13]} 87. Kf1 {[%emt 0:00:00]} Ke4 {[%emt 0:00:17]} 88. Ra4+ {[%emt 0:00:00]} Kf3 {[%emt 0:00:40]} 89. Ra3+ {[%emt 0:00:00]} Kg4 {[%emt 0:00:06]} 90. Kg1 {[%emt 0:00:00]} f3 {[%emt 0:00:30]} 91. Ra8 {[%emt 0:00:00]} Re2 {[%emt 0:01:50]} 92. Rg8+ {[%emt 0:00:00]} Kf4 {[%emt 0:00:07]} 93. Rf8+ {[%emt 0:00:00]} Ke3 {[%emt 0:00:04]} 94. Re8+ {[%emt 0:00:00]} Kd2 {[%emt 0:00:05]} 95. Rf8 {[%emt 0:00:00]} f2+ {[%emt 0:01:45]} 96. Rxf2 {[%emt 0:00:00]} Rxf2 {[%emt 0:00:03]} 97. Kxf2 {[%emt 0:00:00]} 1/2-1/2